bitfinex-derivatives/quotes_BTCF0:USTF0_20241226
["timestamp","ask_amount","ask_price","bid_price","bid_amount"]
[1735240831573,0.2239,95688.0,95651.0,0.1109]
[1735240831574,0.052311,95663.0,95660.0,0.0764095]
[1735240831778,0.052311,95663.0,95659.0,0.052313]
[1735240831973,0.052311,95663.0,95653.0,0.0764095]
[1735240832271,0.052299,95685.0,95665.0,0.05231]
[1735240832478,0.052306,95671.0,95670.0,0.0764095]
[1735240832680,0.052308,95668.0,95665.0,0.05231]
[1735240832874,0.2343057,95688.0,95670.0,0.052306]
[1735240833175,0.052305,95673.0,95670.0,0.1287165]
[1735240833371,0.052307,95671.0,95653.0,0.052316]
[1735240833574,0.0764095,95680.0,95651.0,0.12137934]
[1735240833575,0.052307,95670.0,95663.0,0.05231]
[1735240833772,0.052307,95670.0,95666.0,0.052309]
[1735240833984,0.052307,95670.0,95660.0,0.0764095]
[1735240834173,0.052307,95670.0,95667.0,0.052308]
[1735240834567,0.052307,95670.0,95663.0,0.001]
[1735240834770,0.052307,95670.0,95668.0,0.052308]
[1735240834968,0.052304,95675.0,95665.0,0.052309]
[1735240835177,0.052304,95675.0,95670.0,0.052307]
[1735240835380,0.001,95670.0,95669.0,0.052307]
[1735240835579,0.14232628,95739.0,95693.0,0.052294]
[1735240835787,0.052293,95697.0,95693.0,0.052294]
[1735240836083,0.152291,95700.0,95694.0,0.052294]
[1735240836286,0.16243081,95700.0,95694.0,0.052294]
[1735240836477,0.052292,95698.0,95694.0,0.052294]
[1735240836682,0.052293,95697.0,95694.0,0.052294]
[1735240837776,0.052293,95697.0,95695.0,0.052293]
[1735240837975,0.056293,95697.0,95695.0,0.052293]
[1735240838175,0.052298,95687.0,95685.0,0.052298]
[1735240838474,0.004,95697.0,95679.0,0.35164]
[1735240838475,0.004,95697.0,95686.0,0.052298]
[1735240838676,0.052295,95692.0,95687.0,0.052298]
[1735240838871,0.1206,95691.0,95679.0,0.35164]
[1735240839083,0.052299,95685.0,95679.0,0.35164]
[1735240839281,0.052299,95685.0,95683.0,0.052299]
[1735240840581,0.172896,95691.0,95679.0,0.35164]
[1735240840788,0.172896,95691.0,95686.0,0.052298]
[1735240840975,0.1206,95691.0,95686.0,0.052298]
[1735240841176,0.052296,95690.0,95686.0,0.052298]
[1735240843976,0.052296,95690.0,95679.0,0.35164]
[1735240843977,0.002,95690.0,95679.0,0.35164]
[1735240844183,0.0523,95684.0,95679.0,0.35164]
[1735240844379,0.052301,95680.0,95679.0,0.35164]
[1735240844979,0.052299,95684.0,95679.0,0.35164]
[1735240845189,0.052299,95684.0,95680.0,0.052301]
[1735240845990,0.052299,95684.0,95679.0,0.35364]
[1735240846176,0.01065413,95689.0,95686.0,0.052298]
[1735240846377,0.172896,95691.0,95686.0,0.052298]
[1735240847186,0.172896,95691.0,95687.0,0.052298]
[1735240848298,0.052296,95690.0,95687.0,0.052298]
[1735240848683,0.1236,95691.0,95682.0,0.0523]
[1735240848684,0.13185915,95691.0,95682.0,0.0523]
[1735240848885,0.13385915,95691.0,95682.0,0.0523]
[1735240849086,0.13385915,95691.0,95679.0,0.35164]
[1735240849285,0.052301,95680.0,95679.0,0.35164]
[1735240850291,0.0523,95683.0,95679.0,0.35164]
[1735240850681,0.1940095,95690.0,95673.0,0.00156776]
[1735240850887,0.0764095,95683.0,95661.0,0.052312]
[1735240851183,0.052308,95668.0,95661.0,0.052312]
[1735240851490,0.052308,95668.0,95662.0,1.5]
[1735240852079,0.1176,95690.0,95662.0,1.5]
[1735240852281,0.052305,95674.0,95669.0,0.052307]
[1735240852592,0.052311,95663.0,95662.0,1.5]
[1735240852888,0.052311,95662.0,95661.0,0.013]
[1735240853098,0.1194,95667.0,95661.0,0.013]
[1735240853284,0.001,95668.0,95667.0,0.052309]
[1735240853882,0.052305,95674.0,95667.0,0.052309]
[1735240854092,0.001,95668.0,95667.0,0.052309]
[1735240854493,0.1194,95679.0,95649.0,0.35156]
[1735240854693,0.05231,95664.0,95650.0,0.052318]
[1735240854898,0.05231,95664.0,95654.0,0.052315]
[1735240855085,0.052311,95663.0,95654.0,0.052315]
[1735240855689,0.052312,95662.0,95654.0,0.052315]
[1735240856091,0.052312,95662.0,95655.0,0.052315]
[1735240856295,0.052313,95659.0,95656.0,0.052315]
[1735240857495,0.052313,95659.0,95657.0,0.052314]
[1735240858294,0.053313,95659.0,95657.0,0.052314]
[1735240858692,0.053313,95659.0,95657.0,0.055314]
[1735240859090,0.001,95659.0,95658.0,0.052313]
[1735240859485,0.002,95659.0,95658.0,0.052313]
[1735240860396,0.002,95659.0,95658.0,0.055313]
[1735240860597,0.002,95659.0,95658.0,1.555313]
[1735240860994,0.01023548,95669.0,95658.0,1.503]
[1735240861199,0.052313,95659.0,95658.0,1.503]
[1735240861795,0.052313,95659.0,95658.0,0.003]
[1735240862698,0.052322,95643.0,95642.0,0.1869912]
[1735240863505,0.052323,95641.0,95640.0,0.00156821]
[1735240863996,0.052317,95651.0,95632.0,1.5]
[1735240864200,0.15694653,95641.0,95620.0,0.00156875]
[1735240864397,0.052333,95623.0,95620.0,0.00156875]
[1735240864596,0.1892095,95640.0,95620.0,0.00156875]
[1735240864798,0.052324,95639.0,95620.0,0.00156875]
[1735240864999,0.052331,95627.0,95620.0,0.05390275]
[1735240865305,0.052331,95627.0,95622.0,0.052333]
[1735240867105,0.1116,95637.0,95622.0,0.052333]
[1735240867295,0.052331,95626.0,95622.0,0.052333]
[1735240867491,0.052331,95626.0,95622.0,0.056333]
[1735240868104,0.052331,95626.0,95622.0,0.060333]
[1735240868304,0.052331,95626.0,95622.0,0.059333]
[1735240868707,0.053331,95626.0,95622.0,0.059333]
[1735240870702,0.06368974,95626.0,95622.0,0.059333]
[1735240871193,0.01135874,95626.0,95622.0,0.007]
[1735240871393,0.01135874,95626.0,95625.0,0.052332]
[1735240872508,0.001,95626.0,95625.0,0.052332]
[1735240872901,0.01023589,95631.0,95630.0,0.052329]
[1735240873203,0.052324,95638.0,95631.0,0.052328]
[1735240873395,0.35614068,95650.0,95631.0,0.052328]
[1735240873396,0.052326,95635.0,95631.0,0.052328]
[1735240874407,0.052326,95635.0,95631.0,0.053328]
[1735240875510,0.052326,95635.0,95631.0,0.055328]
[1735240875904,0.052326,95635.0,95632.0,0.052328]
[1735240876106,0.01017239,95638.0,95633.0,0.052327]
[1735240876311,0.0764095,95650.0,95633.0,0.052327]
[1735240876506,0.052325,95638.0,95633.0,0.052327]
[1735240876712,0.052325,95637.0,95633.0,0.052327]
[1735240877605,0.052325,95637.0,95623.0,1.6212]
[1735240877606,0.32065259,95649.0,95635.0,0.052326]
[1735240877912,0.32065259,95649.0,95641.0,0.052323]
[1735240878116,0.32065259,95649.0,95645.0,0.05232]
[1735240878415,0.32065259,95649.0,95646.0,0.05232]
[1735240878600,0.32065259,95649.0,95639.0,0.0764095]
[1735240878601,0.01063657,95649.0,95639.0,0.0764095]
[1735240878805,0.052317,95652.0,95646.0,0.05232]
[1735240879005,0.052317,95652.0,95649.0,0.052318]
[1735240879206,0.003,95649.0,95639.0,0.0764095]
[1735240879515,0.003,95649.0,95644.0,0.052321]
[1735240879711,0.003,95649.0,95639.0,0.0764095]
[1735240879912,0.003,95649.0,95647.0,0.052319]
[1735240880408,0.005,95649.0,95647.0,0.052319]
[1735240880610,0.004,95649.0,95647.0,0.052319]
[1735240881010,0.052319,95648.0,95642.0,0.052322]
[1735240881216,0.052319,95648.0,95647.0,0.004]
[1735240882216,0.052319,95648.0,95647.0,0.001]
[1735240882513,0.052319,95648.0,95647.0,0.004]
[1735240882813,0.01049499,95652.0,95650.0,0.052317]
[1735240883018,0.1108,95653.0,95650.0,0.052317]
[1735240883513,0.1108,95653.0,95647.0,0.003]
[1735240883711,0.1108,95653.0,95642.0,0.002]
[1735240883712,0.052322,95643.0,95642.0,0.002]
[1735240883917,0.052322,95643.0,95624.0,0.052332]
[1735240883918,0.052319,95648.0,95647.0,0.002]
[1735240884521,0.052332,95624.0,95623.0,0.1212]
[1735240884710,0.052332,95624.0,95620.0,0.052334]
[1735240884910,0.0764095,95640.0,95621.0,0.052334]
[1735240885115,0.05233,95628.0,95616.0,0.2247]
[1735240885317,0.0764095,95640.0,95616.0,0.2247]
[1735240885617,0.052336,95617.0,95616.0,0.1105]
[1735240885821,0.052336,95617.0,95611.0,1.5]
[1735240886010,0.2238,95627.0,95603.0,0.2357]
[1735240886210,0.052343,95604.0,95603.0,0.2357]
[1735240886419,0.052343,95604.0,95603.0,0.1139]
[1735240886719,0.052342,95606.0,95599.0,1.5]
[1735240886915,0.0764095,95620.0,95599.0,1.552346]
[1735240887127,0.052343,95605.0,95603.0,0.005]
[1735240887719,0.05234,95610.0,95603.0,0.005]
[1735240887910,0.001,95606.0,95602.0,0.06291288]
[1735240888110,0.001,95606.0,95602.0,0.01056888]
[1735240888316,0.001,95606.0,95603.0,0.052343]
[1735240888522,0.052341,95608.0,95603.0,0.052343]
[1735240888720,0.001,95605.0,95603.0,0.057343]
[1735240890117,0.052341,95608.0,95603.0,0.056343]
[1735240890419,0.001,95606.0,95603.0,0.056343]
[1735240891221,0.001,95605.0,95603.0,0.060343]
[1735240891422,0.001,95605.0,95603.0,0.063343]
[1735240891924,0.052341,95608.0,95603.0,0.055343]
[1735240892125,0.01047942,95609.0,95603.0,0.055343]
[1735240892325,0.052343,95604.0,95603.0,0.003]
[1735240893018,0.052343,95604.0,95602.0,0.00156888]
[1735240893218,0.052343,95604.0,95603.0,0.004]
[1735240894129,0.052343,95604.0,95603.0,0.011]
[1735240894535,0.052343,95604.0,95603.0,0.01]
[1735240894827,0.053343,95604.0,95603.0,0.01]
[1735240895011,0.053343,95604.0,95603.0,0.003]
[1735240895220,0.053343,95604.0,95603.0,0.01]
[1735240896130,0.001,95604.0,95573.0,0.1869912]
[1735240896329,0.0764095,95586.0,95576.0,0.00156955]
[1735240896525,0.052358,95577.0,95576.0,0.00156955]
[1735240897427,0.052359,95574.0,95573.0,0.1939912]
[1735240897631,0.052359,95574.0,95573.0,0.007]
[1735240897822,0.052359,95574.0,95564.0,0.170765]
[1735240898330,0.05236,95573.0,95564.0,0.170765]
[1735240899022,0.052361,95572.0,95565.0,0.052364]
[1735240899223,0.0764095,95580.0,95565.0,0.052364]
[1735240899623,0.0764095,95580.0,95566.0,0.052364]
[1735240899624,0.052361,95572.0,95566.0,0.052364]
[1735240900122,0.052362,95570.0,95566.0,0.052364]
[1735240900426,0.001,95574.0,95564.0,0.1184]
[1735240900427,0.001,95574.0,95572.0,0.05236]
[1735240900627,0.001,95580.0,95565.0,0.003]
[1735240900925,0.001,95580.0,95570.0,0.0764095]
[1735240901126,0.24864979,95613.0,95579.0,1.5]
[1735240901333,0.36884979,95613.0,95590.0,0.0764095]
[1735240901535,0.36884979,95613.0,95599.0,0.052345]
[1735240901726,0.36884979,95613.0,95591.0,0.3485]
[1735240901932,0.0764095,95610.0,95591.0,0.3485]
[1735240902231,0.052349,95594.0,95586.0,0.052353]
[1735240902434,0.052341,95609.0,95581.0,0.2349]
[1735240902730,0.052348,95595.0,95587.0,0.052352]
[1735240903033,0.052348,95595.0,95581.0,0.2349]
[1735240903218,0.1108,95612.0,95596.0,0.052347]
[1735240903423,0.1108,95612.0,95581.0,0.2349]
[1735240903424,0.052343,95605.0,95597.0,0.052347]
[1735240903633,0.052343,95605.0,95596.0,0.052347]
[1735240903831,0.052343,95605.0,95597.0,0.052347]
[1735240904228,0.05234,95611.0,95602.0,0.052344]
[1735240904426,0.001,95605.0,95602.0,0.052344]
[1735240904734,0.001,95605.0,95590.0,0.0764095]
[1735240905035,0.001,95605.0,95597.0,0.052347]
[1735240905228,0.001,95605.0,95590.0,0.0764095]
[1735240905429,0.001,95605.0,95598.0,0.052346]
[1735240905629,0.052343,95604.0,95598.0,0.052346]
[1735240906230,0.002,95605.0,95587.0,0.002]
[1735240906426,0.052346,95600.0,95592.0,0.05235]
[1735240906632,0.052346,95600.0,95593.0,1.552349]
[1735240906833,0.052346,95600.0,95598.0,0.003]
[1735240907040,0.052343,95604.0,95598.0,0.003]
[1735240907230,0.052345,95601.0,95598.0,0.003]
[1735240907629,0.052346,95598.0,95593.0,1.504]
[1735240907827,0.001,95605.0,95593.0,0.004]
[1735240908030,0.001,95600.0,95598.0,0.002]
[1735240908232,0.052346,95599.0,95598.0,0.002]
[1735240909439,0.052355,95583.0,95582.0,0.00156928]
[1735240910842,0.052355,95583.0,95582.0,0.00356928]
[1735240911031,0.053355,95583.0,95582.0,0.00556928]
[1735240912436,0.053355,95583.0,95582.0,0.00456928]
[1735240913541,0.053355,95583.0,95582.0,0.00356928]
[1735240913928,0.052355,95583.0,95582.0,0.00156928]
[1735240914132,0.0764095,95592.0,95561.0,0.1123]
[1735240914339,0.052361,95572.0,95561.0,0.1123]
[1735240914534,0.052361,95572.0,95564.0,0.052365]
[1735240914734,0.052361,95572.0,95565.0,0.052364]
[1735240914934,0.052361,95572.0,95566.0,0.052364]
[1735240916247,0.052361,95572.0,95566.0,0.055364]
[1735240916944,0.052357,95579.0,95566.0,0.003]
[1735240917147,0.0764095,95580.0,95566.0,0.003]
[1735240917447,0.001,95572.0,95566.0,0.003]
[1735240918242,0.001,95572.0,95567.0,1.5]
[1735240919443,0.05236,95573.0,95567.0,1.5]
[1735240919633,0.001,95572.0,95567.0,1.503]
[1735240920748,0.05336,95573.0,95567.0,1.503]
[1735240922750,0.053361,95572.0,95567.0,1.503]
[1735240923448,0.052361,95572.0,95567.0,1.503]
[1735240923952,0.05235,95592.0,95571.0,0.052361]
[1735240924249,0.28117118,95598.0,95588.0,0.052352]
[1735240924556,0.06286565,95599.0,95589.0,1.7305]
[1735240924757,0.06286565,95599.0,95589.0,1.782851]
[1735240924953,0.01051965,95599.0,95589.0,1.8069095]
[1735240925250,0.0764095,95600.0,95594.0,0.052348]
[1735240925448,0.0764095,95600.0,95567.0,0.01334533]
[1735240925449,0.05235,95591.0,95581.0,0.052355]
[1735240925650,0.1105,95599.0,95581.0,0.052355]
[1735240925948,0.1105,95599.0,95581.0,1.552355]
[1735240926450,0.055351,95591.0,95583.0,0.052354]
[1735240926752,0.052347,95598.0,95589.0,0.052351]
[1735240927253,0.052347,95598.0,95590.0,0.1113]
[1735240927750,0.1105,95609.0,95590.0,0.1113]
[1735240928047,0.052341,95608.0,95590.0,0.1113]
[1735240928452,0.1105,95609.0,95590.0,0.1113]
[1735240928751,0.052348,95596.0,95590.0,0.1113]
[1735240928952,0.001,95591.0,95590.0,0.1113]
[1735240929644,0.052348,95596.0,95590.0,0.1183]
[1735240930143,0.12195389,95609.0,95590.0,0.1183]
[1735240930144,0.001,95591.0,95590.0,0.1183]
[1735240930640,0.052349,95594.0,95590.0,0.1133]
[1735240930842,0.052349,95594.0,95590.0,0.1173]
[1735240932148,0.052349,95594.0,95590.0,0.1113]
[1735240932455,0.001,95591.0,95590.0,0.1183]
[1735240932663,0.001,95591.0,95590.0,0.2347]
[1735240932952,0.052345,95600.0,95592.0,0.052349]
[1735240933255,0.06297292,95600.0,95592.0,0.052349]
[1735240934447,0.24864979,95613.0,95590.0,0.3101095]
[1735240934650,0.052339,95612.0,95604.0,0.052343]
[1735240936454,0.003,95612.0,95598.0,0.052346]
[1735240936652,0.003,95612.0,95590.0,0.3041095]
[1735240936653,0.0764095,95610.0,95590.0,0.2277]
[1735240936860,0.052353,95585.0,95584.0,0.00156928]
[1735240938250,0.06278057,95585.0,95584.0,0.00156928]
[1735240939156,0.06378057,95585.0,95584.0,0.00756928]
[1735240939457,0.06378057,95585.0,95584.0,0.01056928]
[1735240939660,0.06278057,95585.0,95584.0,0.00956928]
[1735240940054,0.06278057,95585.0,95584.0,0.00856928]
[1735240940262,0.06278057,95585.0,95584.0,0.00756928]
[1735240940646,0.06278057,95585.0,95584.0,0.00356928]
[1735240940852,0.06278057,95585.0,95584.0,0.00756928]
[1735240942364,0.06278057,95585.0,95584.0,0.00656928]
[1735240942962,0.06278057,95585.0,95584.0,0.00556928]
[1735240943161,0.06278057,95585.0,95584.0,0.00456928]
[1735240944771,0.06278057,95585.0,95584.0,0.003]
[1735240945456,0.06278057,95585.0,95584.0,0.001]
[1735240945664,0.06278057,95585.0,95584.0,0.003]
[1735240946162,0.06278057,95585.0,95562.0,0.052366]
[1735240946463,0.052357,95579.0,95562.0,0.052366]
[1735240947160,0.052357,95579.0,95556.0,0.1162]
[1735240947765,0.06278057,95585.0,95556.0,0.1162]
[1735240947766,0.06278057,95585.0,95562.0,0.052366]
[1735240947968,0.1187,95578.0,95562.0,0.052366]
[1735240948167,0.052361,95571.0,95562.0,0.052366]
[1735240948668,0.052361,95571.0,95563.0,1.5]
[1735240948869,0.052362,95570.0,95563.0,1.5]
[1735240950168,0.053362,95570.0,95563.0,1.506]
[1735240950768,0.001,95570.0,95563.0,1.506]
[1735240950962,0.052365,95565.0,95563.0,1.506]
[1735240951162,0.052365,95565.0,95563.0,1.509]
[1735240951768,0.001,95570.0,95563.0,1.509]
[1735240951963,0.052364,95567.0,95563.0,1.509]
[1735240952166,0.001,95565.0,95563.0,1.509]
[1735240952470,0.052365,95564.0,95563.0,1.509]
[1735240953575,0.50702552,95600.0,95563.0,1.509]
[1735240953769,0.052363,95568.0,95563.0,1.509]
[1735240954372,0.052363,95568.0,95566.0,0.052364]
[1735240955877,0.001,95568.0,95566.0,0.003]
[1735240956068,0.052363,95567.0,95566.0,0.003]
[1735240957467,0.052363,95567.0,95566.0,0.009]
[1735240957972,0.053363,95567.0,95566.0,0.009]
[1735240958574,0.052363,95567.0,95566.0,0.003]
[1735240958881,0.052363,95567.0,95566.0,0.006]
[1735240959581,0.052353,95585.0,95571.0,0.052361]
[1735240959880,0.05236,95574.0,95571.0,0.052361]
[1735240960277,0.052353,95586.0,95566.0,0.006]
[1735240960478,0.052359,95576.0,95566.0,0.006]
[1735240960680,0.052359,95576.0,95569.0,0.052362]
[1735240960876,0.052359,95575.0,95569.0,0.052362]
[1735240961179,0.052359,95575.0,95571.0,0.001]
[1735240961484,0.052354,95584.0,95571.0,0.003]
[1735240961780,0.052354,95584.0,95571.0,0.002]
[1735240962086,0.052362,95570.0,95569.0,0.004]
[1735240962482,0.052362,95570.0,95569.0,0.001]
[1735240962677,0.052362,95570.0,95565.0,0.052364]
[1735240963179,0.052362,95570.0,95563.0,1.5]
[1735240963476,0.052354,95584.0,95569.0,0.052362]
[1735240963477,0.052359,95576.0,95569.0,0.052362]
[1735240963877,0.052359,95576.0,95570.0,0.052362]
[1735240964674,0.052354,95584.0,95570.0,0.052362]
[1735240964880,0.052359,95575.0,95570.0,0.052362]
[1735240965080,0.052359,95575.0,95570.0,0.053362]
[1735240965382,0.052359,95575.0,95570.0,0.055362]
[1735240965782,0.05236,95574.0,95570.0,0.053362]
[1735240965979,0.05236,95574.0,95570.0,0.055362]
[1735240966180,0.052354,95584.0,95570.0,0.003]
[1735240966376,0.052361,95572.0,95570.0,0.003]
[1735240966779,0.052361,95571.0,95570.0,0.003]
[1735240967885,0.052366,95563.0,95557.0,1.5]
[1735240968987,0.052366,95563.0,95559.0,0.052368]
[1735240969387,0.053366,95563.0,95559.0,0.052368]
[1735240970786,0.053366,95563.0,95557.0,1.509]
[1735240971187,0.053366,95563.0,95559.0,0.004]
[1735240971686,0.053366,95563.0,95559.0,0.007]
[1735240972683,0.0513,95568.0,95559.0,0.055367]
[1735240972684,0.103663,95568.0,95559.0,0.055367]
[1735240972884,0.001,95563.0,95559.0,0.058367]
[1735240974282,0.0513,95568.0,95559.0,0.055367]
[1735240974588,0.001,95563.0,95559.0,0.059367]
[1735240974784,0.001,95563.0,95559.0,0.056367]
[1735240975084,0.001,95563.0,95559.0,0.058367]
[1735240975585,0.052364,95566.0,95559.0,0.058367]
[1735240976078,0.001,95563.0,95559.0,0.058367]
[1735240976582,0.001,95563.0,95559.0,0.056367]
[1735240976783,0.001,95563.0,95559.0,0.058367]
[1735240977982,0.052367,95560.0,95559.0,0.002]
[1735240978189,0.052367,95560.0,95553.0,0.00156975]
[1735240978393,0.15702995,95560.0,95553.0,0.052371]
[1735240978582,0.052366,95562.0,95554.0,0.10247]
[1735240978888,0.001,95566.0,95554.0,0.10247]
[1735240979085,0.052369,95556.0,95554.0,0.0501]
[1735240981484,0.001,95563.0,95562.0,0.052366]
[1735240981883,0.24966757,95567.0,95566.0,0.052364]
[1735240982284,0.15679829,95567.0,95566.0,1.552364]
[1735240982582,0.15679829,95573.0,95572.0,0.052361]
[1735240983693,0.01038061,95578.0,95566.0,1.5]
[1735240983985,0.05236,95573.0,95566.0,1.5]
[1735240984283,0.052358,95577.0,95572.0,0.05236]
[1735240984488,0.052359,95575.0,95571.0,0.052361]
[1735240984684,0.001,95573.0,95571.0,0.052361]
[1735240985684,0.05236,95574.0,95571.0,0.052361]
[1735240986088,0.052352,95587.0,95566.0,0.002]
[1735240986287,0.052362,95569.0,95565.0,0.052364]
[1735240986488,0.052362,95569.0,95563.0,0.0764095]
[1735240986690,0.052362,95569.0,95563.0,1.5764095]
[1735240986989,0.052362,95571.0,95563.0,1.5764095]
[1735240987791,0.052362,95571.0,95570.0,0.052362]
[1735240988091,0.002,95574.0,95573.0,0.05236]
[1735240988690,0.01024179,95582.0,95574.0,0.052359]
[1735240988885,0.052353,95586.0,95585.0,0.052353]
[1735240990280,0.0498,95589.0,95585.0,0.052353]
[1735240990485,0.0498,95589.0,95575.0,0.1505]
[1735240990486,0.0498,95589.0,95586.0,0.052353]
[1735240990690,0.06017984,95589.0,95586.0,0.052353]
[1735240990888,0.06017984,95589.0,95579.0,0.0764095]
[1735240991090,0.06017984,95589.0,95588.0,0.052352]
[1735240991486,0.06717984,95589.0,95588.0,0.052352]
[1735240991685,0.06717984,95589.0,95570.0,0.06280354]
[1735240991686,0.06717984,95589.0,95512.0,0.1738]
[1735240991978,0.06617984,95589.0,95564.0,0.0954]
[1735240992178,0.052353,95587.0,95557.0,0.0457]
[1735240992383,0.06617984,95589.0,95562.0,0.052366]
[1735240992384,0.052353,95586.0,95562.0,0.052366]
[1735240992591,0.15599476,95586.0,95555.0,0.0488]
[1735240992795,0.052364,95567.0,95555.0,0.0488]
[1735240992990,0.052366,95562.0,95552.0,0.1869912]
[1735240993393,0.052366,95562.0,95548.0,1.5]
[1735240994294,0.052366,95562.0,95551.0,0.052372]
[1735240994794,0.052366,95562.0,95552.0,1.5]
[1735240994998,0.052366,95562.0,95561.0,0.354]
[1735240995193,0.053366,95562.0,95561.0,0.356]
[1735240995690,0.06361856,95562.0,95561.0,0.356]
[1735240995991,0.06261856,95562.0,95561.0,0.356]
[1735240996395,0.06261856,95562.0,95561.0,0.354]
[1735240996593,0.06261856,95562.0,95561.0,0.355]
[1735240996890,0.01025256,95562.0,95561.0,0.355]
[1735240997082,0.0495,95566.0,95561.0,0.355]
[1735240997287,0.0495,95566.0,95562.0,1.5]
[1735240997999,0.05979022,95566.0,95562.0,1.5]
[1735240998599,0.05979022,95566.0,95562.0,1.501]
[1735240998799,0.052365,95563.0,95562.0,1.501]
[1735240999997,0.052365,95563.0,95562.0,0.001]
[1735241000997,0.05979022,95566.0,95562.0,0.001]
[1735241001197,0.052365,95563.0,95562.0,0.001]
[1735241004098,0.05237,95555.0,95551.0,1.5]
[1735241004295,0.05979022,95566.0,95551.0,1.5]
[1735241004499,0.05237,95554.0,95551.0,1.5]
[1735241005601,0.052371,95553.0,95551.0,1.5]
[1735241005801,0.052371,95553.0,95551.0,1.502]
[1735241006001,0.052371,95553.0,95551.0,1.504]
[1735241007295,0.052371,95553.0,95551.0,1.502]
[1735241007496,0.053371,95553.0,95551.0,1.504]
[1735241007998,0.052372,95552.0,95551.0,1.504]
[1735241014511,0.06277009,95552.0,95551.0,1.504]
[1735241015009,0.06277009,95552.0,95551.0,0.004]
[1735241015610,0.052365,95565.0,95551.0,0.056372]
[1735241015808,0.052362,95569.0,95558.0,0.052368]
[1735241015998,0.052362,95569.0,95559.0,0.052367]
[1735241016203,0.05236,95574.0,95560.0,1.5473]
[1735241016404,0.05236,95574.0,95565.0,0.052364]
[1735241016705,0.34278956,95577.0,95568.0,0.052362]
[1735241017407,0.052358,95576.0,95568.0,0.052362]
[1735241017611,0.01070038,95577.0,95568.0,0.052362]
[1735241017907,0.052361,95571.0,95566.0,0.047]
[1735241018302,0.052362,95569.0,95566.0,0.047]
[1735241019910,0.002,95577.0,95566.0,0.048]
[1735241020110,0.052361,95571.0,95566.0,0.048]
[1735241020503,0.052361,95571.0,95566.0,0.047]
[1735241020704,0.052361,95571.0,95566.0,0.048]
[1735241021213,0.0560799,95580.0,95566.0,0.048]
[1735241021806,0.052362,95570.0,95566.0,0.048]
[1735241022104,0.0560799,95580.0,95566.0,0.001]
[1735241022105,0.052363,95567.0,95566.0,0.001]
[1735241023808,0.052366,95562.0,95560.0,0.0473]
[1735241024407,0.052367,95561.0,95560.0,0.0473]
[1735241025218,0.052367,95561.0,95560.0,0.0503]
[1735241026914,0.052367,95561.0,95560.0,0.0493]
[1735241027119,0.052367,95561.0,95560.0,0.0503]
[1735241027619,0.052367,95561.0,95560.0,0.0483]
[1735241027817,0.052367,95561.0,95560.0,0.0503]
[1735241028518,0.052367,95561.0,95560.0,0.0493]
[1735241028719,0.052367,95561.0,95560.0,0.0503]
[1735241030121,0.052367,95561.0,95560.0,0.003]
[1735241033722,0.052367,95561.0,95560.0,0.001]
[1735241033918,0.052367,95561.0,95560.0,0.003]
[1735241036925,0.052373,95550.0,95543.0,0.140576]
[1735241037326,0.052374,95548.0,95543.0,0.140576]
[1735241038523,0.052374,95548.0,95543.0,0.143576]
[1735241039421,0.052374,95547.0,95543.0,0.145576]
[1735241039815,0.052374,95547.0,95543.0,0.143576]
[1735241040021,0.052374,95547.0,95543.0,0.145576]
[1735241040222,0.052375,95546.0,95543.0,0.145576]
[1735241040423,0.052375,95546.0,95543.0,0.143576]
[1735241040623,0.052375,95546.0,95543.0,0.145576]
[1735241041416,0.052376,95544.0,95543.0,0.145576]
[1735241041616,0.052376,95544.0,95543.0,1.645576]
[1735241043129,0.001,95547.0,95546.0,0.052375]
[1735241043319,0.001,95546.0,95543.0,0.0932]
[1735241043650,0.052376,95544.0,95543.0,0.0932]
[1735241043849,0.052376,95544.0,95543.0,1.5932]
[1735241044256,0.052376,95544.0,95543.0,1.645576]
[1735241044951,0.053376,95544.0,95543.0,1.645576]
[1735241045153,0.001,95544.0,95543.0,1.645576]
[1735241045752,0.001,95544.0,95543.0,1.945576]
[1735241045955,0.01058746,95554.0,95553.0,0.052371]
[1735241046155,0.052366,95562.0,95558.0,0.052368]
[1735241046354,0.32393118,95569.0,95558.0,0.052368]
[1735241046554,0.052367,95560.0,95558.0,0.052368]
[1735241046951,0.052368,95559.0,95558.0,0.052368]
[1735241048055,0.052365,95564.0,95558.0,0.052368]
[1735241048362,0.052365,95564.0,95559.0,0.052367]
[1735241048957,0.052365,95564.0,95558.0,0.001]
[1735241049155,0.0104299,95569.0,95568.0,0.052363]
[1735241049358,0.052359,95576.0,95559.0,0.052367]
[1735241049664,0.052359,95576.0,95566.0,0.0764095]
[1735241049855,0.052359,95576.0,95567.0,0.0452]
[1735241050062,0.29007111,95577.0,95567.0,0.0452]
[1735241050257,0.29007111,95577.0,95568.0,0.052363]
[1735241050457,0.29007111,95577.0,95572.0,0.05236]
[1735241050658,0.29007111,95577.0,95567.0,0.0452]
[1735241050861,0.29007111,95577.0,95567.0,0.097563]
[1735241050862,0.01033993,95577.0,95567.0,0.097563]
[1735241051062,0.052357,95579.0,95567.0,0.097563]
[1735241051265,0.001,95577.0,95567.0,0.097563]
[1735241051562,0.001,95577.0,95567.0,0.0452]
[1735241051757,0.001,95577.0,95560.0,1.588]
[1735241051758,0.052366,95562.0,95560.0,0.0437]